[Event "*** Titled Tuesday Blitz"]
[Site "Chess.com"]
[Date "2021.03.16"]
[Round "7"]
[White "BvsN"]
[Black "barbara25"]
[Result "1-0"]
[WhiteElo "2425"]
[BlackElo "2253"]
[TimeControl "180+1"]
[EndTime "11:18:31 PDT"]
[Termination "BvsN won by checkmate"]

1. c4 {[%clk 0:03:00.9]} 1... e5 {[%clk 0:02:54.1]} 2. Nc3 {[%clk 0:03:01]} 2...
Nf6 {[%clk 0:02:53.3]} 3. Nf3 {[%clk 0:03:00.2]} 3... Nc6 {[%clk 0:02:52.3]} 4.
e3 {[%clk 0:03:00.3]} 4... Bb4 {[%clk 0:02:51.5]} 5. Qc2 {[%clk 0:02:58.7]} 5...
O-O {[%clk 0:02:49.8]} 6. Nd5 {[%clk 0:02:58.9]} 6... Bd6 {[%clk 0:02:46.9]} 7.
Ng5 {[%clk 0:02:52.3]} 7... g6 {[%clk 0:02:41.9]} 8. Nxf6+ {[%clk 0:02:39.1]}
8... Qxf6 {[%clk 0:02:41.1]} 9. Ne4 {[%clk 0:02:39.7]} 9... Qg7 {[%clk
0:02:41.3]} 10. Nxd6 {[%clk 0:02:38.6]} 10... cxd6 {[%clk 0:02:41.5]} 11. Be2
{[%clk 0:02:36.6]} 11... f5 {[%clk 0:02:40.6]} 12. a3 {[%clk 0:02:32.9]} 12...
b6 {[%clk 0:02:38.9]} 13. b4 {[%clk 0:02:32.6]} 13... Bb7 {[%clk 0:02:38]} 14.
Bb2 {[%clk 0:02:31.7]} 14... Qf7 {[%clk 0:02:35.8]} 15. O-O {[%clk 0:02:30.4]}
15... Rac8 {[%clk 0:02:33.8]} 16. Bf3 {[%clk 0:02:29.3]} 16... e4 {[%clk
0:02:32.6]} 17. Be2 {[%clk 0:02:26.1]} 17... Ne5 {[%clk 0:02:32.3]} 18. Qb3
{[%clk 0:02:18.6]} 18... b5 {[%clk 0:02:29.3]} 19. Rac1 {[%clk 0:02:08.2]} 19...
bxc4 {[%clk 0:02:27.7]} 20. Qc3 {[%clk 0:02:05.2]} 20... Rfe8 {[%clk 0:02:17.9]}
21. f4 {[%clk 0:02:04.8]} 21... exf3 {[%clk 0:02:17.4]} 22. gxf3 {[%clk
0:02:04.6]} 22... g5 {[%clk 0:01:50.6]} 23. Kf2 {[%clk 0:01:44.6]} 23... Qh5
{[%clk 0:01:36.5]} 24. Ke1 {[%clk 0:00:42.4]} 24... f4 {[%clk 0:01:10.9]} 25.
Kd1 {[%clk 0:00:31.5]} 25... Qxh2 {[%clk 0:00:43.5]} 26. Qd4 {[%clk 0:00:19.2]}
26... Bc6 {[%clk 0:00:23.7]} 27. Rc2 {[%clk 0:00:08.7]} 27... Ba4 {[%clk
0:00:22.9]} 28. Re1 {[%clk 0:00:08.2]} 28... Bxc2+ {[%clk 0:00:21.6]} 29. Kxc2
{[%clk 0:00:08.7]} 29... Qh6 {[%clk 0:00:20.4]} 30. Bc3 {[%clk 0:00:08.5]} 30...
Qg6+ {[%clk 0:00:20.5]} 31. Kb2 {[%clk 0:00:07.4]} 31... Qg7 {[%clk 0:00:20.7]}
32. exf4 {[%clk 0:00:06.8]} 32... gxf4 {[%clk 0:00:18.5]} 33. Rg1 {[%clk
0:00:07]} 33... Re7 {[%clk 0:00:13.5]} 34. Rxg7+ {[%clk 0:00:06.5]} 34... Rxg7
{[%clk 0:00:13.6]} 35. Qxf4 {[%clk 0:00:06.5]} 35... Rf7 {[%clk 0:00:11.5]} 36.
Qg3+ {[%clk 0:00:06]} 36... Rg7 {[%clk 0:00:11.6]} 37. Qh2 {[%clk 0:00:06]}
37... Re8 {[%clk 0:00:10.7]} 38. Bxe5 {[%clk 0:00:05.9]} 38... dxe5 {[%clk
0:00:10.5]} 39. Bxc4+ {[%clk 0:00:06.2]} 39... Kh8 {[%clk 0:00:10.8]} 40. Qh6
{[%clk 0:00:06]} 40... Rf8 {[%clk 0:00:09.4]} 41. Qd6 {[%clk 0:00:06.1]} 41...
Re8 {[%clk 0:00:07.8]} 42. Qa6 {[%clk 0:00:06]} 42... h6 {[%clk 0:00:06.6]} 43.
Bd5 {[%clk 0:00:06.3]} 43... d6 {[%clk 0:00:06.7]} 44. Qd3 {[%clk 0:00:05.6]}
44... Rf8 {[%clk 0:00:05.9]} 45. Qe3 {[%clk 0:00:06.1]} 45... Rf4 {[%clk
0:00:05.7]} 46. Qe1 {[%clk 0:00:05.3]} 46... Rd4 {[%clk 0:00:05.7]} 47. Be4
{[%clk 0:00:04.6]} 47... Rg2 {[%clk 0:00:04.5]} 48. Bc2 {[%clk 0:00:04.8]} 48...
Rdxd2 {[%clk 0:00:03.7]} 49. Qe4 {[%clk 0:00:04.6]} 49... Rxc2+ {[%clk
0:00:03.8]} 50. Kb3 {[%clk 0:00:05.2]} 50... Rb2+ {[%clk 0:00:03.7]} 51. Ka4
{[%clk 0:00:05.7]} 51... Rbd2 {[%clk 0:00:03.5]} 52. Qa8+ {[%clk 0:00:06.6]}
52... Kg7 {[%clk 0:00:03.5]} 53. Qxa7+ {[%clk 0:00:07.2]} 53... Kf6 {[%clk
0:00:04.4]} 54. Qb6 {[%clk 0:00:07.2]} 54... h5 {[%clk 0:00:04.4]} 55. Qd8+
{[%clk 0:00:07.8]} 55... Kf5 {[%clk 0:00:04.7]} 56. Qd7+ {[%clk 0:00:07.5]}
56... Kf4 {[%clk 0:00:05]} 57. Qf7+ {[%clk 0:00:07.4]} 57... Ke3 {[%clk
0:00:05.1]} 58. Qf5 {[%clk 0:00:07.5]} 58... Rgf2 {[%clk 0:00:04.5]} 59. Qe4#
{[%clk 0:00:07.7]} 1-0

[Event "*** Titled Tuesday Blitz"]
[Site "Chess.com"]
[Date "2021.03.16"]
[Round "7"]
[White "NishaOnYoutube"]
[Black "NoGuru"]
[Result "0-1"]
[WhiteElo "2097"]
[BlackElo "2289"]
[TimeControl "180+1"]
[EndTime "11:18:33 PDT"]
[Termination "NoGuru won by checkmate"]

1. d4 {[%clk 0:03:00.9]} 1... d5 {[%clk 0:02:59.9]} 2. c4 {[%clk 0:02:59.7]}
2... e6 {[%clk 0:02:59.9]} 3. Nc3 {[%clk 0:02:59]} 3... Be7 {[%clk 0:02:59.3]}
4. Nf3 {[%clk 0:02:57.1]} 4... Nf6 {[%clk 0:02:59.2]} 5. Bf4 {[%clk 0:02:50.9]}
5... O-O {[%clk 0:02:58.3]} 6. e3 {[%clk 0:02:50.7]} 6... Nbd7 {[%clk
0:02:53.3]} 7. c5 {[%clk 0:02:47.2]} 7... c6 {[%clk 0:02:53.5]} 8. Be2 {[%clk
0:02:43.7]} 8... b6 {[%clk 0:02:53.6]} 9. b4 {[%clk 0:02:24.8]} 9... a5 {[%clk
0:02:53.4]} 10. a3 {[%clk 0:02:23.8]} 10... Ba6 {[%clk 0:02:51.1]} 11. O-O
{[%clk 0:02:10.5]} 11... Qc8 {[%clk 0:02:44.2]} 12. Bxa6 {[%clk 0:01:57.9]}
12... Rxa6 {[%clk 0:02:42]} 13. Qe2 {[%clk 0:01:54.2]} 13... Qb7 {[%clk
0:02:39.1]} 14. b5 {[%clk 0:01:30.6]} 14... Raa8 {[%clk 0:02:03.3]} 15. cxb6
{[%clk 0:01:09.7]} 15... Qxb6 {[%clk 0:01:54.9]} 16. bxc6 {[%clk 0:01:05.3]}
16... Qxc6 {[%clk 0:01:54.6]} 17. Rfc1 {[%clk 0:01:02.7]} 17... Rfc8 {[%clk
0:01:54]} 18. Na2 {[%clk 0:00:38.4]} 18... Qa4 {[%clk 0:01:45.5]} 19. Nc3 {[%clk
0:00:21.2]} 19... Qc4 {[%clk 0:01:32.1]} 20. Qxc4 {[%clk 0:00:19.6]} 20... Rxc4
{[%clk 0:01:31.9]} 21. Nd2 {[%clk 0:00:17.4]} 21... Rc6 {[%clk 0:01:25.1]} 22.
Ne2 {[%clk 0:00:17.3]} 22... Rxc1+ {[%clk 0:01:21.3]} 23. Nxc1 {[%clk
0:00:17.4]} 23... a4 {[%clk 0:01:16.2]} 24. Nd3 {[%clk 0:00:17.3]} 24... Rc8
{[%clk 0:01:13.6]} 25. Kf1 {[%clk 0:00:17.2]} 25... h6 {[%clk 0:01:13.8]} 26.
Ke2 {[%clk 0:00:16]} 26... Rc3 {[%clk 0:01:13.4]} 27. Rb1 {[%clk 0:00:15.1]}
27... Rxa3 {[%clk 0:01:07.9]} 28. Rb7 {[%clk 0:00:14]} 28... Ra2 {[%clk
0:01:06]} 29. f3 {[%clk 0:00:12.8]} 29... g5 {[%clk 0:01:01.9]} 30. Bg3 {[%clk
0:00:11.5]} 30... a3 {[%clk 0:01:00.5]} 31. Ra7 {[%clk 0:00:11.5]} 31... Rc2
{[%clk 0:00:53.8]} 32. Ne5 {[%clk 0:00:08.9]} 32... Nxe5 {[%clk 0:00:48.7]} 33.
dxe5 {[%clk 0:00:06.6]} 33... Bb4 {[%clk 0:00:46.4]} 34. Be1 {[%clk 0:00:01.8]}
34... Nh5 {[%clk 0:00:37.3]} 35. Ra8+ {[%clk 0:00:02.4]} 35... Kh7 {[%clk
0:00:35.8]} 36. Kd3 {[%clk 0:00:03.3]} 36... Rc3+ {[%clk 0:00:34.9]} 37. Ke2
{[%clk 0:00:03.2]} 37... Ng7 {[%clk 0:00:33.5]} 38. Ra7 {[%clk 0:00:03.5]} 38...
Kg6 {[%clk 0:00:32.7]} 39. Nf1 {[%clk 0:00:02.9]} 39... Rc2+ {[%clk 0:00:32]}
40. Nd2 {[%clk 0:00:03.3]} 40... Nf5 {[%clk 0:00:30]} 41. Kd3 {[%clk 0:00:03.6]}
41... Rc3+ {[%clk 0:00:30.1]} 42. Ke2 {[%clk 0:00:03.7]} 42... Rxe3+ {[%clk
0:00:30.1]} 43. Kd1 {[%clk 0:00:03.7]} 43... Nd4 {[%clk 0:00:25.5]} 44. Ra4
{[%clk 0:00:01.8]} 44... Bc3 {[%clk 0:00:23.1]} 45. Bf2 {[%clk 0:00:02]} 45...
Rd3 {[%clk 0:00:20.4]} 46. Be1 {[%clk 0:00:02.5]} 46... Nb3 {[%clk 0:00:19.1]}
47. Rxa3 {[%clk 0:00:02.5]} 47... Nxd2 {[%clk 0:00:19.2]} 48. Bxd2 {[%clk
0:00:02.4]} 48... Rxd2+ {[%clk 0:00:19.1]} 49. Kc1 {[%clk 0:00:02.7]} 49... Rd3
{[%clk 0:00:18.1]} 50. Ra6 {[%clk 0:00:02.4]} 50... Bxe5 {[%clk 0:00:17.3]} 51.
h3 {[%clk 0:00:02]} 51... Re3 {[%clk 0:00:16]} 52. Kd2 {[%clk 0:00:02.1]} 52...
Bf4 {[%clk 0:00:15.4]} 53. Kd1 {[%clk 0:00:02.1]} 53... Rb3 {[%clk 0:00:15]} 54.
Ra8 {[%clk 0:00:01.7]} 54... d4 {[%clk 0:00:15.3]} 55. Ke2 {[%clk 0:00:01.8]}
55... d3+ {[%clk 0:00:15.5]} 56. Kd1 {[%clk 0:00:01.4]} 56... Rb1# {[%clk
0:00:15.7]} 0-1

[Event "*** Titled Tuesday Blitz"]
[Site "Chess.com"]
[Date "2021.03.16"]
[Round "7"]
[White "Volodar_Murzin"]
[Black "Taran2004"]
[Result "1-0"]
[WhiteElo "2680"]
[BlackElo "2445"]
[TimeControl "180+1"]
[EndTime "11:18:34 PDT"]
[Termination "Volodar_Murzin won by resignation"]

1. e4 {[%clk 0:03:00.9]} 1... c5 {[%clk 0:02:59.4]} 2. Nf3 {[%clk 0:03:00.1]}
2... d6 {[%clk 0:02:58.8]} 3. Bb5+ {[%clk 0:02:56.6]} 3... Bd7 {[%clk 0:02:54]}
4. Bxd7+ {[%clk 0:02:52.4]} 4... Qxd7 {[%clk 0:02:54.9]} 5. O-O {[%clk
0:02:51.8]} 5... Nc6 {[%clk 0:02:53.5]} 6. c3 {[%clk 0:02:50.2]} 6... Nf6 {[%clk
0:02:52.6]} 7. d4 {[%clk 0:02:47.7]} 7... cxd4 {[%clk 0:02:52.4]} 8. cxd4 {[%clk
0:02:46.4]} 8... e6 {[%clk 0:02:51.7]} 9. Nc3 {[%clk 0:02:45.5]} 9... Be7 {[%clk
0:02:51.3]} 10. Re1 {[%clk 0:02:39.5]} 10... O-O {[%clk 0:02:46.5]} 11. Bf4
{[%clk 0:02:34]} 11... Rfd8 {[%clk 0:02:34.4]} 12. d5 {[%clk 0:02:29.4]} 12...
Na5 {[%clk 0:02:27.4]} 13. Qe2 {[%clk 0:02:17.5]} 13... e5 {[%clk 0:02:25.5]}
14. Bd2 {[%clk 0:02:13.6]} 14... Rac8 {[%clk 0:02:22.1]} 15. b3 {[%clk
0:02:12.6]} 15... b6 {[%clk 0:02:19.3]} 16. Rac1 {[%clk 0:02:09.4]} 16... Nb7
{[%clk 0:02:17.3]} 17. b4 {[%clk 0:02:02.5]} 17... a5 {[%clk 0:02:03.7]} 18. a3
{[%clk 0:01:59.5]} 18... axb4 {[%clk 0:02:03.7]} 19. axb4 {[%clk 0:01:57.8]}
19... Ra8 {[%clk 0:02:04.1]} 20. Be3 {[%clk 0:01:41]} 20... b5 {[%clk 0:01:43]}
21. Nd2 {[%clk 0:01:33.5]} 21... Rdc8 {[%clk 0:01:33.9]} 22. Nxb5 {[%clk
0:01:29.3]} 22... Ra2 {[%clk 0:01:27.6]} 23. Qd3 {[%clk 0:01:24.5]} 23... Ng4
{[%clk 0:01:22.9]} 24. Rxc8+ {[%clk 0:00:55.4]} 24... Qxc8 {[%clk 0:01:23.7]}
25. Nc3 {[%clk 0:00:45]} 25... Ra3 {[%clk 0:01:13.6]} 26. Nc4 {[%clk 0:00:40.3]}
26... Rb3 {[%clk 0:01:12.1]} 27. Rb1 {[%clk 0:00:38.7]} 27... Nxe3 {[%clk
0:01:06.7]} 28. fxe3 {[%clk 0:00:35]} 28... Rxb1+ {[%clk 0:01:06.5]} 29. Nxb1
{[%clk 0:00:33.7]} 29... g6 {[%clk 0:01:05.7]} 30. Nbd2 {[%clk 0:00:26.7]} 30...
f5 {[%clk 0:01:05.2]} 31. exf5 {[%clk 0:00:22.3]} 31... gxf5 {[%clk 0:01:06.1]}
32. e4 {[%clk 0:00:21.5]} 32... f4 {[%clk 0:00:47.8]} 33. Qa3 {[%clk 0:00:17.7]}
33... Qg4 {[%clk 0:00:44.3]} 34. Nf3 {[%clk 0:00:14]} 34... Qd7 {[%clk
0:00:41.4]} 35. Qa8+ {[%clk 0:00:11.3]} 35... Kg7 {[%clk 0:00:41.8]} 36. Qb8
{[%clk 0:00:10.6]} 36... Bd8 {[%clk 0:00:39.4]} 37. h3 {[%clk 0:00:09.7]} 37...
Qb5 {[%clk 0:00:39.5]} 38. Qc8 {[%clk 0:00:04.6]} 38... Bf6 {[%clk 0:00:26.2]}
39. Kh2 {[%clk 0:00:04.1]} 39... Qxb4 {[%clk 0:00:25.4]} 40. Qc6 {[%clk
0:00:04]} 40... Nc5 {[%clk 0:00:22.6]} 41. Nxd6 {[%clk 0:00:03.9]} 41... Nd3
{[%clk 0:00:21.6]} 42. Ne8+ {[%clk 0:00:03.5]} 42... Kf8 {[%clk 0:00:20.3]} 43.
Nxf6 {[%clk 0:00:02.9]} 43... Qe7 {[%clk 0:00:20.3]} 44. Nd7+ {[%clk 0:00:02.4]}
44... Kg7 {[%clk 0:00:19.3]} 45. Qe6 {[%clk 0:00:02.6]} 45... Qxe6 {[%clk
0:00:16.7]} 46. dxe6 {[%clk 0:00:03.5]} 46... Nb4 {[%clk 0:00:16.3]} 47. Ndxe5
{[%clk 0:00:04]} 47... Kf8 {[%clk 0:00:15.9]} 48. Ng4 {[%clk 0:00:02.5]} 48...
Ke7 {[%clk 0:00:16.1]} 49. h4 {[%clk 0:00:03.4]} 49... Kxe6 {[%clk 0:00:16]} 50.
Nf2 {[%clk 0:00:04.3]} 50... Nc6 {[%clk 0:00:16.5]} 51. Nh3 {[%clk 0:00:05.2]}
51... Ne5 {[%clk 0:00:16.2]} 52. Nxf4+ {[%clk 0:00:06]} 52... Kf6 {[%clk
0:00:16.7]} 53. Nxe5 {[%clk 0:00:06.3]} 53... Kxe5 {[%clk 0:00:17.6]} 54. Kg3
{[%clk 0:00:07]} 54... Kxe4 {[%clk 0:00:18.4]} 55. Kg4 {[%clk 0:00:07.9]} 55...
Ke5 {[%clk 0:00:18.6]} 56. Kg5 {[%clk 0:00:08.6]} 56... Kd6 {[%clk 0:00:18.6]}
57. g4 {[%clk 0:00:08.4]} 57... Ke7 {[%clk 0:00:19.5]} 58. Kh6 {[%clk
0:00:08.6]} 58... Kf8 {[%clk 0:00:20.4]} 59. Kxh7 {[%clk 0:00:09.4]} 59... Kf7
{[%clk 0:00:21.1]} 60. g5 {[%clk 0:00:10.1]} 60... Ke7 {[%clk 0:00:20.7]} 61. g6
{[%clk 0:00:10.6]} 1-0

[Event "*** Titled Tuesday Blitz"]
[Site "Chess.com"]
[Date "2021.03.16"]
[Round "7"]
[White "Leo_C"]
[Black "HanSchut"]
[Result "1-0"]
[WhiteElo "2418"]
[BlackElo "2232"]
[TimeControl "180+1"]
[EndTime "11:18:40 PDT"]
[Termination "Leo_C won on time"]

1. d4 {[%clk 0:02:54.7]} 1... Nf6 {[%clk 0:02:59.4]} 2. c4 {[%clk 0:02:54.5]}
2... g6 {[%clk 0:02:59.9]} 3. f3 {[%clk 0:02:54.2]} 3... Nc6 {[%clk 0:02:59.4]}
4. d5 {[%clk 0:02:53.4]} 4... Ne5 {[%clk 0:02:58.9]} 5. e4 {[%clk 0:02:52.5]}
5... d6 {[%clk 0:02:53.3]} 6. Nc3 {[%clk 0:02:52.3]} 6... Bg7 {[%clk 0:02:46.8]}
7. f4 {[%clk 0:02:51.6]} 7... Ned7 {[%clk 0:02:46.7]} 8. Nh3 {[%clk 0:02:51]}
8... Nc5 {[%clk 0:02:46.9]} 9. Nf2 {[%clk 0:02:49.4]} 9... O-O {[%clk
0:02:44.7]} 10. Be3 {[%clk 0:02:48.9]} 10... e6 {[%clk 0:02:44]} 11. dxe6 {[%clk
0:02:36.9]} 11... Bxe6 {[%clk 0:02:29.1]} 12. Be2 {[%clk 0:02:31.9]} 12... Re8
{[%clk 0:02:22.4]} 13. O-O {[%clk 0:02:29.7]} 13... a5 {[%clk 0:02:10.1]} 14. e5
{[%clk 0:02:12.7]} 14... Nfd7 {[%clk 0:01:44.5]} 15. exd6 {[%clk 0:02:02.8]}
15... cxd6 {[%clk 0:01:33.6]} 16. Qxd6 {[%clk 0:02:01.2]} 16... Qe7 {[%clk
0:01:02]} 17. Qxe7 {[%clk 0:01:51.5]} 17... Rxe7 {[%clk 0:01:02]} 18. Rfe1
{[%clk 0:01:41.7]} 18... Bxc3 {[%clk 0:00:57.1]} 19. bxc3 {[%clk 0:01:39]} 19...
Rc8 {[%clk 0:00:57.2]} 20. Bd4 {[%clk 0:01:27.4]} 20... Na4 {[%clk 0:00:50.7]}
21. Ne4 {[%clk 0:01:16]} 21... f5 {[%clk 0:00:31.8]} 22. Nd6 {[%clk 0:00:56.9]}
22... Rc6 {[%clk 0:00:16.6]} 23. Nxb7 {[%clk 0:00:54.1]} 23... Ndc5 {[%clk
0:00:10.7]} 24. Nxa5 {[%clk 0:00:51.3]} 24... Rcc7 {[%clk 0:00:07.1]} 25. Nb3
{[%clk 0:00:49.9]} 25... Ne4 {[%clk 0:00:05.5]} 26. Rac1 {[%clk 0:00:43.6]}
26... Bxc4 {[%clk 0:00:04.4]} 27. Bxc4+ {[%clk 0:00:41.6]} 27... Rxc4 {[%clk
0:00:05.3]} 28. Nd2 {[%clk 0:00:32.2]} 28... Rc8 {[%clk 0:00:04.8]} 29. Nxe4
{[%clk 0:00:31]} 29... fxe4 {[%clk 0:00:05.7]} 30. Re3 {[%clk 0:00:28.2]} 30...
Kf7 {[%clk 0:00:05.9]} 31. Rce1 {[%clk 0:00:27.6]} 31... Rec7 {[%clk 0:00:05]}
32. Rxe4 {[%clk 0:00:23.8]} 32... Nxc3 {[%clk 0:00:05.4]} 33. Bxc3 {[%clk
0:00:20.5]} 33... Rxc3 {[%clk 0:00:06.3]} 34. a4 {[%clk 0:00:20.7]} 34... R8c7
{[%clk 0:00:06.4]} 35. a5 {[%clk 0:00:19.8]} 35... Ra3 {[%clk 0:00:06.6]} 36.
Re5 {[%clk 0:00:20]} 36... Rc2 {[%clk 0:00:06.3]} 37. R1e2 {[%clk 0:00:18.4]}
37... Rxe2 {[%clk 0:00:05.9]} 38. Rxe2 {[%clk 0:00:19.3]} 38... Rxa5 {[%clk
0:00:06.5]} 39. Kf2 {[%clk 0:00:19.9]} 39... h5 {[%clk 0:00:06.7]} 40. Rb2
{[%clk 0:00:18.3]} 40... Ra7 {[%clk 0:00:05.8]} 41. Kg3 {[%clk 0:00:18.3]} 41...
Kf6 {[%clk 0:00:06.2]} 42. Rb6+ {[%clk 0:00:17.5]} 42... Kg7 {[%clk 0:00:06.6]}
43. Kh4 {[%clk 0:00:17]} 43... Ra5 {[%clk 0:00:06.7]} 44. g3 {[%clk 0:00:16.7]}
44... Kh7 {[%clk 0:00:06.9]} 45. h3 {[%clk 0:00:15.2]} 45... Kg7 {[%clk
0:00:07]} 46. Rb7+ {[%clk 0:00:13.7]} 46... Kh6 {[%clk 0:00:06.4]} 47. Rf7
{[%clk 0:00:12.2]} 47... Rb5 {[%clk 0:00:04.6]} 48. Rf6 {[%clk 0:00:12]} 48...
Kg7 {[%clk 0:00:03.6]} 49. Rc6 {[%clk 0:00:10.8]} 49... Rb7 {[%clk 0:00:03.9]}
50. g4 {[%clk 0:00:10.8]} 50... hxg4 {[%clk 0:00:04.8]} 51. hxg4 {[%clk
0:00:11.7]} 51... Rb4 {[%clk 0:00:05]} 52. Kg5 {[%clk 0:00:11.6]} 52... Rb5+
{[%clk 0:00:04.9]} 53. f5 {[%clk 0:00:12]} 53... gxf5 {[%clk 0:00:05.8]} 54.
gxf5 {[%clk 0:00:12.9]} 54... Kf7 {[%clk 0:00:05.9]} 55. Rc7+ {[%clk 0:00:12.8]}
55... Kf8 {[%clk 0:00:06.2]} 56. Kg6 {[%clk 0:00:11.6]} 56... Rb1 {[%clk
0:00:03.6]} 57. Rf7+ {[%clk 0:00:11.1]} 57... Kg8 {[%clk 0:00:01.7]} 58. Rg7+
{[%clk 0:00:11.3]} 58... Kf8 {[%clk 0:00:02.2]} 59. Rh7 {[%clk 0:00:10.8]} 1-0

[Event "*** Titled Tuesday Blitz"]
[Site "Chess.com"]
[Date "2021.03.16"]
[Round "7"]
[White "Orest_Vovk"]
[Black "PavelShkapenko"]
[Result "0-1"]
[WhiteElo "2479"]
[BlackElo "2697"]
[TimeControl "180+1"]
[EndTime "11:18:44 PDT"]
[Termination "PavelShkapenko won by resignation"]

1. Nf3 {[%clk 0:03:00.9]} 1... Nf6 {[%clk 0:02:57.1]} 2. Rg1 {[%clk 0:02:53.6]}
2... d5 {[%clk 0:02:55.1]} 3. d3 {[%clk 0:02:47.4]} 3... c5 {[%clk 0:02:52.8]}
4. h3 {[%clk 0:02:47]} 4... Nc6 {[%clk 0:02:44.1]} 5. Bf4 {[%clk 0:02:45.3]}
5... g6 {[%clk 0:02:31.3]} 6. g4 {[%clk 0:02:33.2]} 6... Bg7 {[%clk 0:02:30.5]}
7. c3 {[%clk 0:02:33]} 7... O-O {[%clk 0:02:29.5]} 8. Nbd2 {[%clk 0:02:28]} 8...
Re8 {[%clk 0:02:28.4]} 9. Ne5 {[%clk 0:02:23.7]} 9... Qb6 {[%clk 0:02:23.5]} 10.
Qb3 {[%clk 0:02:18.2]} 10... Be6 {[%clk 0:02:13.7]} 11. Ndf3 {[%clk 0:02:14]}
11... Nxe5 {[%clk 0:02:06.3]} 12. Bxe5 {[%clk 0:02:11.4]} 12... Bf8 {[%clk
0:01:38]} 13. Ng5 {[%clk 0:02:00.1]} 13... Bc8 {[%clk 0:01:28]} 14. Qxb6 {[%clk
0:01:40.6]} 14... axb6 {[%clk 0:01:26.7]} 15. Bc7 {[%clk 0:01:28.9]} 15... b5
{[%clk 0:01:07.2]} 16. f4 {[%clk 0:01:16.7]} 16... h5 {[%clk 0:00:52.8]} 17.
gxh5 {[%clk 0:01:08.3]} 17... Nxh5 {[%clk 0:00:52.8]} 18. e4 {[%clk 0:01:05.4]}
18... e6 {[%clk 0:00:41.6]} 19. Be2 {[%clk 0:00:41.7]} 19... Nf6 {[%clk
0:00:36.5]} 20. h4 {[%clk 0:00:34.2]} 20... c4 {[%clk 0:00:36.4]} 21. h5 {[%clk
0:00:33]} 21... cxd3 {[%clk 0:00:36]} 22. hxg6 {[%clk 0:00:33.3]} 22... fxg6
{[%clk 0:00:36.1]} 23. Bxd3 {[%clk 0:00:33]} 23... b4 {[%clk 0:00:31]} 24. e5
{[%clk 0:00:28.9]} 24... Re7 {[%clk 0:00:23.9]} 25. Bd6 {[%clk 0:00:15.4]} 25...
Nh5 {[%clk 0:00:20.9]} 26. Bxg6 {[%clk 0:00:14.1]} 26... Nxf4 {[%clk 0:00:20.5]}
27. Bc2 {[%clk 0:00:12.6]} 27... Rg7 {[%clk 0:00:19.7]} 28. Kd2 {[%clk
0:00:10.6]} 28... Bxd6 {[%clk 0:00:18.2]} 29. exd6 {[%clk 0:00:11.5]} 29... Bd7
{[%clk 0:00:18.5]} 30. Nh7 {[%clk 0:00:09.8]} 30... bxc3+ {[%clk 0:00:18.1]} 31.
bxc3 {[%clk 0:00:09.3]} 31... Nh5 {[%clk 0:00:17.1]} 32. Rxg7+ {[%clk
0:00:07.9]} 32... Kxg7 {[%clk 0:00:16.7]} 33. Rg1+ {[%clk 0:00:07.8]} 33... Kh8
{[%clk 0:00:12.3]} 34. Rh1 {[%clk 0:00:07.3]} 34... Ng3 {[%clk 0:00:11.2]} 35.
Rh3 {[%clk 0:00:06.1]} 35... Nf1+ {[%clk 0:00:10.6]} 36. Ke2 {[%clk 0:00:06.2]}
36... Bb5+ {[%clk 0:00:10.8]} 37. Ke1 {[%clk 0:00:05.8]} 37... Kg7 {[%clk
0:00:10.4]} 38. Ng5 {[%clk 0:00:05.3]} 38... Kf6 {[%clk 0:00:10.3]} 39. Nh7+
{[%clk 0:00:05.2]} 39... Ke5 {[%clk 0:00:09.8]} 40. d7 {[%clk 0:00:04.1]} 40...
Kd6 {[%clk 0:00:10.1]} 41. Nf6 {[%clk 0:00:04]} 41... Rd8 {[%clk 0:00:09.2]} 42.
Rf3 {[%clk 0:00:03.9]} 42... Nh2 {[%clk 0:00:08.7]} 43. Rf2 {[%clk 0:00:04]}
43... Nf1 {[%clk 0:00:08.2]} 44. Rxf1 {[%clk 0:00:02.6]} 44... Bxf1 {[%clk
0:00:08.3]} 45. Kxf1 {[%clk 0:00:03.5]} 45... Ke7 {[%clk 0:00:09]} 46. Ng4
{[%clk 0:00:02.8]} 46... Rxd7 {[%clk 0:00:09.3]} 47. Nf2 {[%clk 0:00:03.7]}
47... Rc7 {[%clk 0:00:09.6]} 48. Nd1 {[%clk 0:00:03.9]} 48... Kd6 {[%clk
0:00:09.1]} 49. Ke2 {[%clk 0:00:04.8]} 49... Rc5 {[%clk 0:00:09.4]} 50. Kd2
{[%clk 0:00:05.3]} 50... e5 {[%clk 0:00:09.7]} 51. a4 {[%clk 0:00:05.4]} 51...
b5 {[%clk 0:00:09.3]} 52. axb5 {[%clk 0:00:04.8]} 52... Rxb5 {[%clk 0:00:09.6]}
53. Ne3 {[%clk 0:00:05.3]} 53... Kc5 {[%clk 0:00:09.3]} 54. Ng4 {[%clk
0:00:04.8]} 54... Kd6 {[%clk 0:00:07.5]} 55. Ne3 {[%clk 0:00:04.4]} 55... Rb8
{[%clk 0:00:07.6]} 56. Nf5+ {[%clk 0:00:04.4]} 56... Kc5 {[%clk 0:00:07.6]} 57.
Ne3 {[%clk 0:00:05.1]} 57... Rh8 {[%clk 0:00:08.1]} 58. Nd1 {[%clk 0:00:03.9]}
58... Rh2+ {[%clk 0:00:08.2]} 59. Ke1 {[%clk 0:00:04.2]} 59... Rxc2 {[%clk
0:00:07.3]} 0-1